[Event "Titled Tuesday Blitz August 22 Early 2023"]
[White "Ribeiro, Matheus Mendes Domingues"]
[Black "Baches Garcia, Guillermo"]
[WhiteFideId "324226923"]
[BlackFideId "2209764"]
[WhiteElo "2581"]
[BlackElo "2410"]
[Result "0-1"]
[Round "3"]
[TimeControl "180+1"]
[Date "2023.08.22"]
[WhiteClock "0:00:04"]
[BlackClock "0:00:19"]
[Board "140"]

1. c4 {[%clk 0:03:00]}  e5 {[%clk 0:02:59]} 2. Nc3 {[%clk 0:03:00]}  Nf6 {[%clk 0:03:00]} 3. Nf3 {[%clk 0:03:00]}  Nc6 {[%clk 0:03:00]} 4. e4 {[%clk 0:03:00]}  d6 {[%clk 0:02:59]} 5. d4 {[%clk 0:03:00]}  exd4 {[%clk 0:03:00]} 6. Nxd4 {[%clk 0:03:01]}  g6 {[%clk 0:03:00]} 7. Be3 {[%clk 0:03:02]}  Bg7 {[%clk 0:03:00]} 8. Be2 {[%clk 0:03:02]}  O-O {[%clk 0:03:00]} 9. O-O {[%clk 0:03:03]}  Re8 {[%clk 0:03:00]} 10. f3 {[%clk 0:03:03]}  Bd7 {[%clk 0:02:55]} 11. Qd2 {[%clk 0:03:02]}  a6 {[%clk 0:02:54]} 12. Rfd1 {[%clk 0:03:03]}  Rb8 {[%clk 0:02:51]} 13. Rac1 {[%clk 0:03:03]}  Ne5 {[%clk 0:02:51]} 14. b3 {[%clk 0:02:59]}  h5 {[%clk 0:02:36]} 15. Nd5 {[%clk 0:02:56]}  c6 {[%clk 0:02:25]} 16. Nc3 {[%clk 0:02:15]}  b5 {[%clk 0:02:20]} 17. cxb5 {[%clk 0:02:09]}  axb5 {[%clk 0:02:19]} 18. a4 {[%clk 0:02:06]}  bxa4 {[%clk 0:02:00]} 19. Nxa4 {[%clk 0:02:04]}  c5 {[%clk 0:01:56]} 20. Nc2 {[%clk 0:01:59]}  Bf8 {[%clk 0:01:22]} 21. Rb1 {[%clk 0:01:15]}  c4 {[%clk 0:01:15]} 22. Nd4 {[%clk 0:01:05]}  cxb3 {[%clk 0:01:11]} 23. Nc3 {[%clk 0:01:05]}  h4 {[%clk 0:00:42]} 24. Rxb3 {[%clk 0:01:02]}  h3 {[%clk 0:00:39]} 25. g3 {[%clk 0:00:56]}  Rxb3 {[%clk 0:00:38]} 26. Nxb3 {[%clk 0:00:57]}  Be6 {[%clk 0:00:37]} 27. Nd4 {[%clk 0:00:57]}  Bc4 {[%clk 0:00:38]} 28. Bg5 {[%clk 0:00:46]}  Be7 {[%clk 0:00:38]} 29. f4 {[%clk 0:00:37]}  Bxe2 {[%clk 0:00:37]} 30. fxe5 {[%clk 0:00:37]}  dxe5 {[%clk 0:00:35]} 31. Ndxe2 {[%clk 0:00:33]}  Qb6+ {[%clk 0:00:30]} 32. Qe3 {[%clk 0:00:32]}  Bc5 {[%clk 0:00:30]} 33. Rd3 {[%clk 0:00:21]}  Bxe3+ {[%clk 0:00:30]} 34. Bxe3 {[%clk 0:00:22]}  Qc6 {[%clk 0:00:30]} 35. Nd5 {[%clk 0:00:11]}  Nxd5 {[%clk 0:00:28]} 36. exd5 {[%clk 0:00:12]}  Qc2 {[%clk 0:00:28]} 37. Rd2 {[%clk 0:00:10]}  Qe4 {[%clk 0:00:26]} 38. Kf2 {[%clk 0:00:04]}  Qg2+ {[%clk 0:00:24]} 39. Ke1 {[%clk 0:00:05]}  Ra8 {[%clk 0:00:24]} 40. d6 {[%clk 0:00:01]}  Ra1+ {[%clk 0:00:23]} 41. Rd1 {[%clk 0:00:02]}  Rxd1+ {[%clk 0:00:23]} 42. Kxd1 {[%clk 0:00:03]}  Qd5+ {[%clk 0:00:24]} 43. Ke1 {[%clk 0:00:03]}  Qxd6 {[%clk 0:00:23]} 44. Kf2 {[%clk 0:00:03]}  Qd5 {[%clk 0:00:23]} 45. Ke1 {[%clk 0:00:03]}  Qg2 {[%clk 0:00:23]} 46. Bg1 {[%clk 0:00:04]}  f5 {[%clk 0:00:22]} 47. Kd2 {[%clk 0:00:04]}  g5 {[%clk 0:00:22]} 48. Ke1 {[%clk 0:00:05]}  f4 {[%clk 0:00:22]} 49. gxf4 {[%clk 0:00:06]}  gxf4 {[%clk 0:00:23]} 50. Bc5 {[%clk 0:00:05]}  Qxh2 {[%clk 0:00:21]} 51. Bd6 {[%clk 0:00:05]}  Qg2 {[%clk 0:00:19]} 52. Nxf4 {[%clk 0:00:03]}  exf4 {[%clk 0:00:19]} 53. Bxf4 {[%clk 0:00:04]}  h2 {[%clk 0:00:19]} 54. Bxh2 {[%clk 0:00:04]}  Qxh2 {[%clk 0:00:19]} 0-1


[Site "https://www.chess.com"]

[Event "Titled Tuesday Blitz August 22 Early 2023"]
[White "Zheng, Richard"]
[Black "Polaczek, Richard"]
[WhiteFideId "2624893"]
[BlackFideId "200026"]
[WhiteElo "2570"]
[BlackElo "2401"]
[Result "1-0"]
[Round "3"]
[TimeControl "180+1"]
[Date "2023.08.22"]
[WhiteClock "0:00:19"]
[BlackClock "0:00:02"]
[Board "145"]

1. d4 {[%clk 0:03:00]}  Nf6 {[%clk 0:02:58]} 2. Bg5 {[%clk 0:03:00]}  d5 {[%clk 0:02:55]} 3. e3 {[%clk 0:03:00]}  c5 {[%clk 0:02:52]} 4. Bxf6 {[%clk 0:03:00]}  gxf6 {[%clk 0:02:52]} 5. dxc5 {[%clk 0:03:00]}  e6 {[%clk 0:02:50]} 6. Nf3 {[%clk 0:02:59]}  Qa5+ {[%clk 0:02:48]} 7. Nbd2 {[%clk 0:02:57]}  Nc6 {[%clk 0:02:44]} 8. a3 {[%clk 0:02:56]}  Qxc5 {[%clk 0:02:42]} 9. c4 {[%clk 0:02:51]}  Rg8 {[%clk 0:02:28]} 10. cxd5 {[%clk 0:02:39]}  Qxd5 {[%clk 0:02:26]} 11. Bc4 {[%clk 0:02:35]}  Qh5 {[%clk 0:02:21]} 12. Ne4 {[%clk 0:02:26]}  Be7 {[%clk 0:02:11]} 13. Ng3 {[%clk 0:02:13]}  Qa5+ {[%clk 0:02:08]} 14. b4 {[%clk 0:02:08]}  Qb6 {[%clk 0:02:04]} 15. O-O {[%clk 0:02:04]}  a5 {[%clk 0:01:57]} 16. b5 {[%clk 0:02:01]}  Ne5 {[%clk 0:01:55]} 17. Nxe5 {[%clk 0:02:01]}  fxe5 {[%clk 0:01:54]} 18. Qh5 {[%clk 0:01:59]}  Bd7 {[%clk 0:01:11]} 19. Rfc1 {[%clk 0:01:46]}  Rc8 {[%clk 0:01:01]} 20. Qxh7 {[%clk 0:01:38]}  Rf8 {[%clk 0:00:59]} 21. a4 {[%clk 0:01:25]}  f5 {[%clk 0:00:16]} 22. Qg6+ {[%clk 0:01:22]}  Rf7 {[%clk 0:00:14]} 23. Nh5 {[%clk 0:01:15]}  Kf8 {[%clk 0:00:14]} 24. Qh6+ {[%clk 0:00:59]}  Kg8 {[%clk 0:00:13]} 25. Qg6+ {[%clk 0:00:59]}  Kf8 {[%clk 0:00:12]} 26. Be2 {[%clk 0:00:53]}  Rxc1+ {[%clk 0:00:10]} 27. Rxc1 {[%clk 0:00:53]}  Qd6 {[%clk 0:00:10]} 28. Rd1 {[%clk 0:00:48]}  Qc7 {[%clk 0:00:07]} 29. b6 {[%clk 0:00:35]}  Qc8 {[%clk 0:00:07]} 30. Qh6+ {[%clk 0:00:23]}  Kg8 {[%clk 0:00:06]} 31. e4 {[%clk 0:00:21]}  Bxa4 {[%clk 0:00:04]} 32. Rd3 {[%clk 0:00:19]}  Qc2 {[%clk 0:00:02]} 33. Rg3+ {[%clk 0:00:18]}  Bg5 {[%clk 0:00:01]} 34. Rxg5+ {[%clk 0:00:19]}  Rg7 {[%clk 0:00:02]} 35. Qxg7# {[%clk 0:00:19]} 1-0


[Site "https://www.chess.com"]

[Event "Titled Tuesday Blitz August 22 Early 2023"]
[White "Gheorghiu, Calin"]
[Black "Sadzikowski, Daniel"]
[WhiteFideId "1200305"]
[BlackFideId "1132253"]
[WhiteElo "2400"]
[BlackElo "2570"]
[Result "0-1"]
[Round "3"]
[TimeControl "180+1"]
[Date "2023.08.22"]
[WhiteClock "0:00:48"]
[BlackClock "0:02:36"]
[Board "146"]

1. e4 {[%clk 0:02:33]}  c5 {[%clk 0:02:59]} 2. Nf3 {[%clk 0:02:29]}  d6 {[%clk 0:03:00]} 3. d4 {[%clk 0:02:29]}  cxd4 {[%clk 0:03:01]} 4. Nxd4 {[%clk 0:02:29]}  Nf6 {[%clk 0:03:01]} 5. Nc3 {[%clk 0:02:29]}  a6 {[%clk 0:03:02]} 6. Bg5 {[%clk 0:02:30]}  e6 {[%clk 0:03:02]} 7. f4 {[%clk 0:02:26]}  h6 {[%clk 0:03:02]} 8. Bh4 {[%clk 0:02:24]}  Qb6 {[%clk 0:03:03]} 9. Qd2 {[%clk 0:02:16]}  Qxb2 {[%clk 0:03:02]} 10. Rb1 {[%clk 0:02:16]}  Qa3 {[%clk 0:03:03]} 11. e5 {[%clk 0:02:04]}  dxe5 {[%clk 0:03:03]} 12. fxe5 {[%clk 0:02:01]}  Nfd7 {[%clk 0:03:03]} 13. Bc4 {[%clk 0:01:54]}  Be7 {[%clk 0:02:58]} 14. Bxe7 {[%clk 0:01:50]}  Qxe7 {[%clk 0:02:59]} 15. O-O {[%clk 0:01:32]}  Nxe5 {[%clk 0:02:44]} 16. Be2 {[%clk 0:01:28]}  O-O {[%clk 0:02:42]} 17. Qf4 {[%clk 0:01:18]}  Nbc6 {[%clk 0:02:42]} 18. Nxc6 {[%clk 0:00:54]}  Nxc6 {[%clk 0:02:43]} 19. Bd3 {[%clk 0:00:48]}  Qc5+ {[%clk 0:02:36]} 0-1


[Site "https://www.chess.com"]

[Event "Titled Tuesday Blitz August 22 Early 2023"]
[White "Suder, Jakub"]
[Black "Ovezdurdyyeva, Jemal"]
[WhiteFideId "1195310"]
[BlackFideId "14001888"]
[WhiteElo "2569"]
[BlackElo "2383"]
[Result "1-0"]
[Round "3"]
[TimeControl "180+1"]
[Date "2023.08.22"]
[WhiteClock "0:02:29"]
[BlackClock "0:02:27"]
[Board "147"]

1. d4 {[%clk 0:03:00]}  Nf6 {[%clk 0:02:59]} 2. c4 {[%clk 0:02:59]}  e6 {[%clk 0:02:59]} 3. Nc3 {[%clk 0:02:56]}  b6 {[%clk 0:03:00]} 4. a3 {[%clk 0:02:56]}  Bb7 {[%clk 0:03:00]} 5. d5 {[%clk 0:02:56]}  Be7 {[%clk 0:03:00]} 6. e4 {[%clk 0:02:56]}  d6 {[%clk 0:03:00]} 7. Bd3 {[%clk 0:02:56]}  c6 {[%clk 0:03:00]} 8. dxe6 {[%clk 0:02:47]}  fxe6 {[%clk 0:03:00]} 9. Nf3 {[%clk 0:02:48]}  Nbd7 {[%clk 0:02:55]} 10. O-O {[%clk 0:02:47]}  O-O {[%clk 0:02:55]} 11. b4 {[%clk 0:02:42]}  c5 {[%clk 0:02:48]} 12. Ng5 {[%clk 0:02:34]}  Qc8 {[%clk 0:02:33]} 13. Nxe6 {[%clk 0:02:33]}  Rf7 {[%clk 0:02:34]} 14. Ng5 {[%clk 0:02:33]}  Ne5 {[%clk 0:02:31]} 15. Nxf7 {[%clk 0:02:32]}  Kxf7 {[%clk 0:02:27]} 16. f4 {[%clk 0:02:29]} 1-0


[Site "https://www.chess.com"]

[Event "Titled Tuesday Blitz August 22 Early 2023"]
[White "Ismagilov, Damir"]
[Black "Rego, Pedro Filipe"]
[WhiteFideId "34199982"]
[BlackFideId "1904310"]
[WhiteElo "2567"]
[BlackElo "2376"]
[Result "1-0"]
[Round "3"]
[TimeControl "180+1"]
[Date "2023.08.22"]
[WhiteClock "0:01:53"]
[BlackClock "0:00:38"]
[Board "148"]

1. d4 {[%clk 0:03:00]}  Nf6 {[%clk 0:02:59]} 2. c4 {[%clk 0:03:01]}  e6 {[%clk 0:02:58]} 3. Nc3 {[%clk 0:03:02]}  d5 {[%clk 0:02:56]} 4. cxd5 {[%clk 0:03:01]}  Nxd5 {[%clk 0:02:56]} 5. e4 {[%clk 0:03:01]}  Nxc3 {[%clk 0:02:56]} 6. bxc3 {[%clk 0:03:02]}  c5 {[%clk 0:02:56]} 7. Rb1 {[%clk 0:03:03]}  cxd4 {[%clk 0:02:42]} 8. cxd4 {[%clk 0:03:02]}  Be7 {[%clk 0:02:42]} 9. Nf3 {[%clk 0:02:54]}  O-O {[%clk 0:02:42]} 10. Bc4 {[%clk 0:02:54]}  b6 {[%clk 0:02:40]} 11. O-O {[%clk 0:02:53]}  Bb7 {[%clk 0:02:40]} 12. Qe2 {[%clk 0:02:53]}  Nc6 {[%clk 0:02:37]} 13. Rd1 {[%clk 0:02:52]}  Na5 {[%clk 0:02:37]} 14. Bd3 {[%clk 0:02:50]}  Rc8 {[%clk 0:02:36]} 15. Bf4 {[%clk 0:02:45]}  h6 {[%clk 0:02:31]} 16. h3 {[%clk 0:02:44]}  Nc6 {[%clk 0:02:28]} 17. d5 {[%clk 0:02:19]}  exd5 {[%clk 0:01:41]} 18. exd5 {[%clk 0:02:19]}  Na5 {[%clk 0:01:33]} 19. Qe4 {[%clk 0:02:17]}  f5 {[%clk 0:01:32]} 20. Qe6+ {[%clk 0:02:16]}  Kh8 {[%clk 0:01:31]} 21. d6 {[%clk 0:02:08]}  Bh4 {[%clk 0:01:13]} 22. Ne5 {[%clk 0:02:04]}  Qf6 {[%clk 0:01:08]} 23. Ng6+ {[%clk 0:02:02]}  Kh7 {[%clk 0:01:06]} 24. Nxf8+ {[%clk 0:02:02]}  Rxf8 {[%clk 0:01:05]} 25. Qxf6 {[%clk 0:01:59]}  Rxf6 {[%clk 0:00:38]} 26. g3 {[%clk 0:01:53]} 1-0


[Site "https://www.chess.com"]

[Event "Titled Tuesday Blitz August 22 Early 2023"]
[White "Young_Catalan_Player09"]
[Black "Megalios, Konstantinos"]
[BlackFideId "4238044"]
[WhiteElo "2377"]
[BlackElo "2566"]
[Result "0-1"]
[Round "3"]
[TimeControl "180+1"]
[Date "2023.08.22"]
[WhiteClock "0:01:32"]
[BlackClock "0:00:47"]
[Board "149"]

1. d4 {[%clk 0:03:00]}  Nf6 {[%clk 0:02:56]} 2. Nf3 {[%clk 0:03:00]}  e6 {[%clk 0:02:55]} 3. c4 {[%clk 0:02:59]}  Bb4+ {[%clk 0:02:56]} 4. Bd2 {[%clk 0:02:58]}  a5 {[%clk 0:02:53]} 5. g3 {[%clk 0:02:58]}  d6 {[%clk 0:02:53]} 6. Bg2 {[%clk 0:02:57]}  Nbd7 {[%clk 0:02:53]} 7. O-O {[%clk 0:02:58]}  e5 {[%clk 0:02:54]} 8. dxe5 {[%clk 0:02:55]}  dxe5 {[%clk 0:02:53]} 9. a3 {[%clk 0:02:53]}  Bxd2 {[%clk 0:02:51]} 10. Qxd2 {[%clk 0:02:54]}  O-O {[%clk 0:02:49]} 11. Nc3 {[%clk 0:02:54]}  c6 {[%clk 0:02:45]} 12. Rfd1 {[%clk 0:02:53]}  Qe7 {[%clk 0:02:45]} 13. e3 {[%clk 0:02:50]}  Re8 {[%clk 0:02:44]} 14. Qd6 {[%clk 0:02:49]}  Qxd6 {[%clk 0:02:36]} 15. Rxd6 {[%clk 0:02:50]}  Nc5 {[%clk 0:02:34]} 16. Rad1 {[%clk 0:02:48]}  a4 {[%clk 0:02:31]} 17. Rd8 {[%clk 0:02:46]}  Bg4 {[%clk 0:02:25]} 18. Rxa8 {[%clk 0:02:44]}  Rxa8 {[%clk 0:02:26]} 19. Rd6 {[%clk 0:02:41]}  Bxf3 {[%clk 0:02:23]} 20. Bxf3 {[%clk 0:02:41]}  Kf8 {[%clk 0:02:23]} 21. Kf1 {[%clk 0:02:40]}  Ke7 {[%clk 0:02:23]} 22. Rd1 {[%clk 0:02:39]}  Rd8 {[%clk 0:01:56]} 23. Rxd8 {[%clk 0:02:38]}  Kxd8 {[%clk 0:01:57]} 24. Ke2 {[%clk 0:02:30]}  Ke7 {[%clk 0:01:55]} 25. h3 {[%clk 0:02:27]}  g6 {[%clk 0:01:38]} 26. Kd2 {[%clk 0:02:26]}  Nfd7 {[%clk 0:01:33]} 27. Bd1 {[%clk 0:02:09]}  Nb6 {[%clk 0:01:31]} 28. Be2 {[%clk 0:02:07]}  f5 {[%clk 0:01:29]} 29. Kc2 {[%clk 0:02:05]}  Kd6 {[%clk 0:01:27]} 30. Nb1 {[%clk 0:02:05]}  e4 {[%clk 0:01:22]} 31. Kc3 {[%clk 0:02:03]}  Nbd7 {[%clk 0:01:14]} 32. Nd2 {[%clk 0:02:02]}  Ne5 {[%clk 0:01:13]} 33. Kb4 {[%clk 0:01:54]}  Ned3+ {[%clk 0:01:12]} 34. Bxd3 {[%clk 0:01:54]}  Nxd3+ {[%clk 0:01:13]} 35. Kxa4 {[%clk 0:01:54]}  Nxb2+ {[%clk 0:01:12]} 36. Kb3 {[%clk 0:01:52]}  Nd1 {[%clk 0:01:10]} 37. f3 {[%clk 0:01:50]}  exf3 {[%clk 0:01:07]} 38. Nxf3 {[%clk 0:01:51]}  Nxe3 {[%clk 0:01:06]} 39. Ng5 {[%clk 0:01:52]}  h5 {[%clk 0:00:58]} 40. a4 {[%clk 0:01:35]}  Nf1 {[%clk 0:00:57]} 41. Kb4 {[%clk 0:01:34]}  Nxg3 {[%clk 0:00:56]} 42. Ka5 {[%clk 0:01:34]}  Ne4 {[%clk 0:00:53]} 43. Kb6 {[%clk 0:01:34]}  Nxg5 {[%clk 0:00:51]} 44. Kxb7 {[%clk 0:01:34]}  Ne4 {[%clk 0:00:46]} 45. a5 {[%clk 0:01:34]}  Nc5+ {[%clk 0:00:47]} 46. Kb6 {[%clk 0:01:32]}  f4 {[%clk 0:00:47]} 0-1


[Site "https://www.chess.com"]

[Event "Titled Tuesday Blitz August 22 Early 2023"]
[White "Wartiovaara, Oliver"]
[Black "Ozalp, Burak"]
[WhiteFideId "513024"]
[BlackFideId "6314210"]
[WhiteElo "2565"]
[BlackElo "2364"]
[Result "0-1"]
[Round "3"]
[TimeControl "180+1"]
[Date "2023.08.22"]
[WhiteClock "0:00:18"]
[BlackClock "0:00:57"]
[Board "150"]

1. Nf3 {[%clk 0:03:00]}  c5 {[%clk 0:02:56]} 2. b3 {[%clk 0:02:59]}  Nf6 {[%clk 0:02:54]} 3. Bb2 {[%clk 0:02:59]}  e6 {[%clk 0:02:54]} 4. e3 {[%clk 0:02:56]}  Be7 {[%clk 0:02:54]} 5. d4 {[%clk 0:02:54]}  O-O {[%clk 0:02:53]} 6. Bd3 {[%clk 0:02:54]}  b6 {[%clk 0:02:53]} 7. O-O {[%clk 0:02:53]}  Bb7 {[%clk 0:02:53]} 8. Nbd2 {[%clk 0:02:52]}  d5 {[%clk 0:02:51]} 9. Ne5 {[%clk 0:02:49]}  Nfd7 {[%clk 0:02:47]} 10. f4 {[%clk 0:02:44]}  f5 {[%clk 0:02:34]} 11. g4 {[%clk 0:02:31]}  Nxe5 {[%clk 0:02:31]} 12. fxe5 {[%clk 0:02:27]}  Ba6 {[%clk 0:02:31]} 13. gxf5 {[%clk 0:02:18]}  Bxd3 {[%clk 0:02:30]} 14. cxd3 {[%clk 0:02:19]}  exf5 {[%clk 0:02:23]} 15. dxc5 {[%clk 0:02:17]}  Nc6 {[%clk 0:02:17]} 16. cxb6 {[%clk 0:02:08]}  Qxb6 {[%clk 0:02:14]} 17. d4 {[%clk 0:02:04]}  f4 {[%clk 0:02:02]} 18. Nf3 {[%clk 0:01:14]}  fxe3 {[%clk 0:02:02]} 19. Qe2 {[%clk 0:01:11]}  Rf5 {[%clk 0:01:51]} 20. Qxe3 {[%clk 0:01:11]}  Raf8 {[%clk 0:01:51]} 21. Rf2 {[%clk 0:01:04]}  Nxe5 {[%clk 0:01:46]} 22. Raf1 {[%clk 0:00:50]}  Ng4 {[%clk 0:01:16]} 23. Qxe7 {[%clk 0:00:41]}  Nxf2 {[%clk 0:01:16]} 24. Rxf2 {[%clk 0:00:39]}  Rxf3 {[%clk 0:01:09]} 25. Rxf3 {[%clk 0:00:34]}  Rxf3 {[%clk 0:01:09]} 26. Kg2 {[%clk 0:00:35]}  Rf8 {[%clk 0:01:03]} 27. Qg5 {[%clk 0:00:18]}  Qe6 {[%clk 0:00:57]} 0-1


[Site "https://www.chess.com"]

[Event "Titled Tuesday Blitz August 22 Early 2023"]
[White "Siniauski, Artsiom"]
[Black "Albertini, Luca"]
[WhiteFideId "13512269"]
[BlackFideId "847038"]
[WhiteElo "2560"]
[BlackElo "2341"]
[Result "1-0"]
[Round "3"]
[TimeControl "180+1"]
[Date "2023.08.22"]
[WhiteClock "0:00:46"]
[BlackClock "0:00:02"]
[Board "155"]

1. e4 {[%clk 0:02:59]}  e5 {[%clk 0:02:57]} 2. Nf3 {[%clk 0:02:59]}  Nc6 {[%clk 0:02:57]} 3. Bb5 {[%clk 0:02:59]}  a6 {[%clk 0:02:57]} 4. Ba4 {[%clk 0:03:00]}  Nf6 {[%clk 0:02:57]} 5. Bxc6 {[%clk 0:03:00]}  dxc6 {[%clk 0:02:57]} 6. d3 {[%clk 0:03:01]}  Bd6 {[%clk 0:02:55]} 7. b3 {[%clk 0:03:01]}  Bg4 {[%clk 0:02:53]} 8. Bb2 {[%clk 0:03:01]}  Nd7 {[%clk 0:02:52]} 9. Nbd2 {[%clk 0:03:01]}  Qf6 {[%clk 0:02:52]} 10. h3 {[%clk 0:03:00]}  Bh5 {[%clk 0:02:52]} 11. g4 {[%clk 0:02:56]}  Bg6 {[%clk 0:02:52]} 12. Nc4 {[%clk 0:02:55]}  O-O-O {[%clk 0:02:48]} 13. Qe2 {[%clk 0:02:54]}  Rhe8 {[%clk 0:02:47]} 14. O-O-O {[%clk 0:02:52]}  Kb8 {[%clk 0:02:47]} 15. Kb1 {[%clk 0:02:51]}  h6 {[%clk 0:02:45]} 16. h4 {[%clk 0:02:50]}  Qe7 {[%clk 0:02:40]} 17. Rdg1 {[%clk 0:02:46]}  h5 {[%clk 0:02:25]} 18. Nfd2 {[%clk 0:02:32]}  hxg4 {[%clk 0:02:11]} 19. Qxg4 {[%clk 0:02:31]}  Nf6 {[%clk 0:02:01]} 20. Qg5 {[%clk 0:02:21]}  Nh5 {[%clk 0:01:58]} 21. Ne3 {[%clk 0:02:16]}  Nf4 {[%clk 0:01:57]} 22. Nf5 {[%clk 0:01:59]}  Qf8 {[%clk 0:01:46]} 23. Nc4 {[%clk 0:01:53]}  f6 {[%clk 0:01:40]} 24. Qg4 {[%clk 0:01:49]}  Bxf5 {[%clk 0:01:32]} 25. Qxf5 {[%clk 0:01:43]}  g6 {[%clk 0:01:31]} 26. Qg4 {[%clk 0:01:42]}  f5 {[%clk 0:01:25]} 27. exf5 {[%clk 0:01:37]}  gxf5 {[%clk 0:01:26]} 28. Qg7 {[%clk 0:01:34]}  e4 {[%clk 0:00:58]} 29. dxe4 {[%clk 0:01:25]}  fxe4 {[%clk 0:00:58]} 30. h5 {[%clk 0:01:19]}  Qf5 {[%clk 0:00:40]} 31. h6 {[%clk 0:01:07]}  b5 {[%clk 0:00:40]} 32. Ne3 {[%clk 0:01:03]}  Qc5 {[%clk 0:00:40]} 33. h7 {[%clk 0:00:58]}  Ne6 {[%clk 0:00:17]} 34. Qc3 {[%clk 0:00:48]}  Qxc3 {[%clk 0:00:11]} 35. Bxc3 {[%clk 0:00:48]}  b4 {[%clk 0:00:07]} 36. Bf6 {[%clk 0:00:47]}  Rh8 {[%clk 0:00:04]} 37. Bxh8 {[%clk 0:00:45]}  Rxh8 {[%clk 0:00:02]} 38. Rg8+ {[%clk 0:00:46]} 1-0


[Site "https://www.chess.com"]

[Event "Titled Tuesday Blitz August 22 Early 2023"]
[White "Chor, Kevin"]
[Black "Carre, Sylvain"]
[WhiteFideId "2090740"]
[BlackFideId "642118"]
[WhiteElo "2557"]
[BlackElo "2330"]
[Result "1-0"]
[Round "3"]
[TimeControl "180+1"]
[Date "2023.08.22"]
[WhiteClock "0:00:09"]
[BlackClock "0:00:00"]
[Board "157"]

1. d4 {[%clk 0:03:00]}  d5 {[%clk 0:02:59]} 2. c4 {[%clk 0:03:00]}  c6 {[%clk 0:03:00]} 3. Nf3 {[%clk 0:02:55]}  Nf6 {[%clk 0:03:00]} 4. e3 {[%clk 0:02:51]}  Bf5 {[%clk 0:03:00]} 5. Nc3 {[%clk 0:02:48]}  e6 {[%clk 0:03:01]} 6. Be2 {[%clk 0:02:45]}  h6 {[%clk 0:03:00]} 7. O-O {[%clk 0:02:44]}  Be7 {[%clk 0:03:00]} 8. Ne5 {[%clk 0:02:32]}  Nbd7 {[%clk 0:03:00]} 9. f4 {[%clk 0:02:31]}  Nxe5 {[%clk 0:02:59]} 10. fxe5 {[%clk 0:02:30]}  Ne4 {[%clk 0:03:00]} 11. cxd5 {[%clk 0:02:19]}  Nxc3 {[%clk 0:02:25]} 12. bxc3 {[%clk 0:02:20]}  Qxd5 {[%clk 0:02:25]} 13. Bf3 {[%clk 0:02:10]}  Qd7 {[%clk 0:02:24]} 14. e4 {[%clk 0:02:09]}  Bg6 {[%clk 0:02:25]} 15. Bh5 {[%clk 0:02:03]}  O-O {[%clk 0:02:14]} 16. Bxg6 {[%clk 0:01:36]}  fxg6 {[%clk 0:02:15]} 17. Rxf8+ {[%clk 0:01:32]}  Rxf8 {[%clk 0:02:16]} 18. Qg4 {[%clk 0:01:32]}  Kh7 {[%clk 0:01:38]} 19. Be3 {[%clk 0:01:29]}  Ba3 {[%clk 0:01:21]} 20. Rd1 {[%clk 0:01:04]}  Qf7 {[%clk 0:01:18]} 21. c4 {[%clk 0:00:55]}  b6 {[%clk 0:00:43]} 22. d5 {[%clk 0:00:44]}  exd5 {[%clk 0:00:39]} 23. exd5 {[%clk 0:00:44]}  Bc5 {[%clk 0:00:36]} 24. Bxc5 {[%clk 0:00:42]}  bxc5 {[%clk 0:00:35]} 25. Qe2 {[%clk 0:00:40]}  cxd5 {[%clk 0:00:35]} 26. cxd5 {[%clk 0:00:34]}  c4 {[%clk 0:00:35]} 27. e6 {[%clk 0:00:29]}  Qf4 {[%clk 0:00:36]} 28. e7 {[%clk 0:00:26]}  Re8 {[%clk 0:00:36]} 29. d6 {[%clk 0:00:26]}  c3 {[%clk 0:00:30]} 30. d7 {[%clk 0:00:21]}  Rxe7 {[%clk 0:00:22]} 31. Qxe7 {[%clk 0:00:18]}  c2 {[%clk 0:00:22]} 32. d8=Q {[%clk 0:00:14]}  c1=Q {[%clk 0:00:08]} 33. Rxc1 {[%clk 0:00:15]}  Qxc1+ {[%clk 0:00:08]} 34. Kf2 {[%clk 0:00:16]}  Qf4+ {[%clk 0:00:08]} 35. Ke2 {[%clk 0:00:16]}  Qc4+ {[%clk 0:00:07]} 36. Ke3 {[%clk 0:00:15]}  Qc1+ {[%clk 0:00:06]} 37. Kd4 {[%clk 0:00:11]}  Qd2+ {[%clk 0:00:06]} 38. Ke5 {[%clk 0:00:11]}  Qe3+ {[%clk 0:00:04]} 39. Kd6 {[%clk 0:00:11]}  Qa3+ {[%clk 0:00:03]} 40. Ke6 {[%clk 0:00:10]}  Qe3+ {[%clk 0:00:03]} 41. Kf7 {[%clk 0:00:10]}  Qf4+ {[%clk 0:00:00]} 42. Ke8 {[%clk 0:00:09]} 1-0


[Site "https://www.chess.com"]

[Event "Titled Tuesday Blitz August 22 Early 2023"]
[White "Postlmayer, Jakob"]
[Black "Zeck_CH"]
[WhiteFideId "1643622"]
[WhiteElo "2553"]
[BlackElo "2324"]
[Result "1/2-1/2"]
[Round "3"]
[TimeControl "180+1"]
[Date "2023.08.22"]
[WhiteClock "0:00:21"]
[BlackClock "0:00:40"]
[Board "160"]

1. e4 {[%clk 0:03:00]}  c6 {[%clk 0:02:53]} 2. d4 {[%clk 0:02:59]}  g6 {[%clk 0:02:54]} 3. Nc3 {[%clk 0:02:58]}  d5 {[%clk 0:02:54]} 4. Nf3 {[%clk 0:02:57]}  Bg7 {[%clk 0:02:55]} 5. h3 {[%clk 0:02:57]}  Nf6 {[%clk 0:02:55]} 6. Bd3 {[%clk 0:02:49]}  dxe4 {[%clk 0:02:53]} 7. Nxe4 {[%clk 0:02:50]}  Nxe4 {[%clk 0:02:53]} 8. Bxe4 {[%clk 0:02:51]}  O-O {[%clk 0:02:53]} 9. O-O {[%clk 0:02:51]}  Nd7 {[%clk 0:02:53]} 10. Re1 {[%clk 0:02:47]}  Qc7 {[%clk 0:02:40]} 11. Bd3 {[%clk 0:02:43]}  e5 {[%clk 0:02:39]} 12. dxe5 {[%clk 0:02:40]}  Nxe5 {[%clk 0:02:38]} 13. Nxe5 {[%clk 0:02:40]}  Bxe5 {[%clk 0:02:36]} 14. Bh6 {[%clk 0:02:36]}  Bg7 {[%clk 0:02:24]} 15. Bxg7 {[%clk 0:02:34]}  Kxg7 {[%clk 0:02:25]} 16. Bc4 {[%clk 0:02:23]}  Qf4 {[%clk 0:02:17]} 17. Bb3 {[%clk 0:02:14]}  a5 {[%clk 0:02:08]} 18. a4 {[%clk 0:02:08]}  Qf6 {[%clk 0:02:07]} 19. c3 {[%clk 0:02:02]}  h5 {[%clk 0:02:02]} 20. Qe2 {[%clk 0:01:55]}  Bf5 {[%clk 0:02:01]} 21. Rad1 {[%clk 0:01:54]}  Rad8 {[%clk 0:01:55]} 22. Qe3 {[%clk 0:01:52]}  Rxd1 {[%clk 0:01:52]} 23. Rxd1 {[%clk 0:01:52]}  Rd8 {[%clk 0:01:49]} 24. Kf1 {[%clk 0:01:26]}  Rxd1+ {[%clk 0:01:45]} 25. Bxd1 {[%clk 0:01:27]}  Qd8 {[%clk 0:01:35]} 26. Be2 {[%clk 0:01:16]}  Be6 {[%clk 0:01:27]} 27. Qe5+ {[%clk 0:01:01]}  Kg8 {[%clk 0:01:24]} 28. c4 {[%clk 0:00:55]}  Qd2 {[%clk 0:00:40]} 29. f4 {[%clk 0:00:21]} 1/2-1/2


[Site "https://www.chess.com"]